[Event "USA Championship 2024"]
[Site "Saint Louis"]
[Date "2024.10.16"]
[Round "5.1"]
[White "Aronian, Levon"]
[Black "Shankland, Sam"]
[Result "1-0"]
[ECO "B72"]
[WhiteElo "2738"]
[BlackElo "2677"]
[Annotator "TA"]
[PlyCount "57"]
[EventDate "2024.10.09"]
[EventType "tourn"]
[EventCountry "USA"]
[SourceTitle "playchess.com"]
[Source "ChessBase"]
[SourceQuality "1"]
[TimeControl "40/5400+30:1800+30"]

{[%evp 19,57,0,8,5,2,0,0,0,0,0,0,-2,0,6,10,0,0,-40,-42,-36,-24,-64,-60,-73,0,0,595,815,819,818,804,839,800,841,828,772,1979,2046,29987,1328]} 1. e4 {[%emt 0:01:02]} c5 {[%emt 0:00:14]} 2. Nc3 {[%emt 0:00:07]} Nc6 {[%emt 0:00:38]} 3. Nge2 {[%emt 0:00:15]} g6 {[%emt 0:00:41]} 4. d4 {[%emt 0:00:06]} cxd4 {[%emt 0:00:03]} 5. Nxd4 {[%emt 0:00:04]} Bg7 {[%emt 0:00:07]} 6. Be3 {[%emt 0:00:04]} Nf6 {[%emt 0:00:10]} 7. Bc4 {[%emt 0:00:05]} O-O {[%emt 0:00:33]} 8. Bb3 {[%emt 0:00:04]} d6 {[%emt 0:00:50]} 9. h3 {[%emt 0:03:12]} Na5 {[%emt 0:07:01]} 10. O-O {[%emt 0:14:53]} b6 {[%emt 0:02:23]} 11. Re1 {[%emt 0:01:22]} Bb7 {[%emt 0:01:12][%cal Oa5b3]} 12. Qd3 {[%emt 0:03:31]} Rc8 {[%emt 0:03:30]} 13. Rad1 {[%emt 0:00:15] The position is equal.} Nxb3 {[%emt 0:06:23]} 14. axb3 {[%emt 0:01:38][%cal Ba2b3,Bb3b4,Bb4b5][%mdl 32]} a6 {[%emt 0:03:48]} 15. b4 {[%emt 0:12:52]} Qc7 {[%emt 0:05:30]} 16. b5 {[%emt 0:01:46]} a5 {[%emt 0:04:02]} 17. Bg5 {[%emt 0:22:27]} Rfe8 {[%emt 0:07:13]} 18. Qe3 {[%emt 0:11:56]} Qc4 {[%emt 0:04:36]} 19. Bh6 {[%emt 0:01:38]} Bh8 {[%emt 0:04:06]} 20. Rd3 {[%emt 0:05:43]} Qb4 {[%emt 0:07:44][%cal Of6d7]} 21. Bg5 {[%emt 0:07:59]} Rc4 {[%emt 0:07:38]} ({Black should try} 21... h6 $17 22. Bxh6 Nd7) 22. Nf5 $1 $11 {[%emt 0:03:48]} gxf5 $4 {[%emt 0:09:05][%mdl 8192] [#]} (22... Qxb2 $11 {and Black is okay.} 23. e5 dxe5 (23... gxf5 $2 24. exf6 Be4 25. Nd5 $18) 24. Nxe7+ Rxe7 25. Qxb6 Bc6 (25... Qxc2 26. Rd8+ Re8 27. Bxf6 $16) (25... Rd7 26. Bxf6 Rxd3 27. cxd3 $14) 26. Qd8+ Re8 27. Bxf6 Bxf6 28. Qxf6 Qxc2) 23. Bh6 $1 $18 {[%emt 0:00:41]} Nxe4 {[%emt 0:09:39]} 24. Nxe4 {[%emt 0:00:05] Threatening mate with Qg5+.} Be5 {[%emt 0:00:58] [#]} 25. Nxd6 $1 {[%emt 0:00:21][%mdl 512]} f6 {[%emt 0:04:25] Inhibits Qg5+.} 26. Nxc4 {[%emt 0:00:16]} (26. Nxe8 $2 {perishes.} Re4 (26... Qxb2 $2 27. Qxb6 Kf7 28. Qxb7 $18) 27. Nxf6+ exf6 28. Rd8+ Kf7 29. Rd7+ Ke8 $19) 26... Qxc4 {[%emt 0:00:09]} 27. f4 {[%emt 0:00:04][%cal Bf2f4,Bf4e5][%mdl 32] White wants to mate with Qg3+.} Kh8 {[%emt 0:01:47]} 28. fxe5 {[%emt 0:00:09]} Rg8 {[%emt 0:00:05]} 29. Rd2 {[%emt 0:00:12] Weighted Error Value: White=0.07 (flawless) /Black=0.70.  Loses game:     	---       	Black=1      Mistake:       	---       	Black=1      Inaccurate:     	White=2     	---        OK:         	White=4     	Black=9      Strong:       	White=2     	---} (29. exf6 $142 exf6 30. Qxb6 Qh4 31. Bg7+ Kxg7 32. Re7+ (32. Qxb7+ Kg6 $18) (32. Qxa5 Be4 $18) 32... Kg6 33. Qxb7 (33. Rxb7 Qe1+ 34. Kh2 Qe5+ 35. Rg3+ Kh6 $18) 33... a4 34. Qc7) 1-0

[Event "USA Championship 2024"]
[Site "Saint Louis"]
[Date "2024.10.16"]
[Round "5.2"]
[White "Oparin, Grigoriy"]
[Black "Sevian, Samuel"]
[Result "1/2-1/2"]
[ECO "A04"]
[WhiteElo "2662"]
[BlackElo "2689"]
[Annotator "TA"]
[PlyCount "99"]
[EventDate "2024.10.09"]
[EventType "tourn"]
[EventCountry "USA"]
[SourceTitle "playchess.com"]
[Source "ChessBase"]
[SourceQuality "1"]
[TimeControl "40/5400+30:1800+30"]

{[%evp 39,99,0,0,0,0,0,38,29,71,0,0,0,25,0,0,-44,-58,-60,-51,-38,-52,-65,-52,-50,-51,-55,-75,-185,0,-6,0,-29,-24,-25,-11,-89,-38,-32,-16,-21,-29,-25,-11,-4,0,0,0,0,0,0,0,0,0,0,0,0,0,-3,0,0,0,-2]} 1. e4 {[%emt 0:00:03]} c5 {[%emt 0:00:08]} 2. Nf3 {[%emt 0:00:06]} e6 {[%emt 0:00:10]} 3. d3 {[%emt 0:00:42]} Nc6 {[%emt 0:01:18]} 4. g3 {[%emt 0:00:24]} g6 {[%emt 0:07:32]} 5. Bg2 {[%emt 0:04:44]} Bg7 {[%emt 0:00:15]} 6. O-O {[%emt 0:00:24]} d6 {[%emt 0:01:25]} 7. c3 {[%emt 0:01:40]} e5 {[%emt 0:02:08] A04: Unusual lines after 1 Nf3 and King's Indian Attack.} 8. a3 {[%emt 0:04:10]} h6 $146 {[%emt 0:02:32]} ({Predecessor:} 8... Nge7 9. b4 O-O 10. Nbd2 b6 11. Bb2 Qc7 12. Rb1 Ba6 13. Nc4 cxb4 14. cxb4 Bb7 15. Rc1 Qd7 16. d4 exd4 17. Nxd4 Ne5 18. Nf5 Nxf5 19. Bxe5 {½-½ Amin,B (2672)-Gabuzyan,H (2569) Lake Sevan Martuni 2017 (7)}) 9. b4 {[%emt 0:01:34]} Nf6 {[%emt 0:01:06]} 10. b5 {[%emt 0:20:39]} Ne7 {[%emt 0:07:03]} 11. a4 {[%emt 0:00:29]} a6 {[%emt 0:00:49]} 12. Na3 {[%emt 0:00:22]} O-O {[%emt 0:03:07]} 13. Bb2 {[%emt 0:09:17]} axb5 {[%emt 0:07:46]} 14. axb5 {[%emt 0:00:05]} Be6 {[%emt 0:03:13]} 15. Re1 {[%emt 0:04:52]} Nd7 {[%emt 0:00:40]} 16. d4 {[%emt 0:05:31]} exd4 {[%emt 0:08:10]} 17. cxd4 {[%emt 0:00:05]} Nb6 {[%emt 0:00:04]} 18. Rb1 {[%emt 0:09:02]} c4 {[%emt 0:04:02]} 19. d5 {[%emt 0:08:42]} Bxb2 {[%emt 0:01:35]} 20. Rxb2 {[%emt 0:00:04]} Bxd5 $1 {[%emt 0:13:12]} (20... Rxa3 $6 21. dxe6 fxe6 22. Rd2 $16) 21. Nc2 {[%emt 0:00:57]} Be6 {[%emt 0:01:04]} 22. Nfd4 {[%emt 0:00:14]} Qd7 {[%emt 0:01:01]} 23. Ne3 {[%emt 0:00:51]} Qc7 {[%emt 0:07:56]} 24. Rc2 {[%emt 0:02:43]} (24. Nxe6 $16 fxe6 25. Rd2) 24... Bd7 $1 $11 {[%emt 0:01:56]} 25. Qd2 {[%emt 0:06:39]} Ra4 {[%emt 0:06:46]} 26. Rec1 {[%emt 0:01:04]} Qc5 {[%emt 0:00:36]} 27. Rc3 {[%emt 0:00:07]} Rfa8 {[%emt 0:04:51]} 28. Bf1 {[%emt 0:06:21]} d5 $1 {[%emt 0:03:12]} (28... Bxb5 $6 29. Nxb5 Qxb5 30. Qxd6 $16) 29. exd5 {[%emt 0:00:37]} Nexd5 {[%emt 0:00:30]} 30. Nxd5 {[%emt 0:00:05]} Qxd5 {[%emt 0:00:09]} 31. Bg2 {[%emt 0:00:57]} Qd6 {[%emt 0:06:23]} 32. Bxb7 {[%emt 0:00:05]} Rd8 {[%emt 0:00:04]} 33. Qe3 {[%emt 0:06:08] [#]} (33. Rd1 $17 {keeps fighting.}) 33... Bh3 $2 {[%emt 0:03:31]} (33... Bc8 $1 $19 {[%cal Rc8b7]} 34. Bxc8 Nd5) 34. Nf3 {[%emt 0:00:32]} Kh7 {[%emt 0:01:18]} 35. Qe5 {[%emt 0:04:24]} (35. Qe1 $5) 35... Rb4 {[%emt 0:01:12]} 36. Re3 {[%emt 0:02:06]} Na4 {[%emt 0:01:09]} (36... Nd5 {simplifies} 37. Qxd6 Rxd6 38. Re4 Rxb5 39. Bxd5 Rbxd5 40. Rcxc4 Rd3) 37. Qe7 {[%emt 0:01:16] [#]} (37. Re4 $11) 37... Qxe7 {[%emt 0:00:25]} (37... Rxb5 $2 38. Qxf7+ Kh8 39. Re7 $18 (39. Qxc4 Rc5 $17) (39. Rxc4 Rf8 $17) (39. Re8+ Rxe8 40. Qxe8+ Kg7 $18) (39. Qxc4 Rc5 $17) (39. Rxc4 Rf8 $17) (39. Re8+ Rxe8 40. Qxe8+ Kg7 $18)) ({Better is} 37... Kg7 $1 $17 {[%cal Od6e7]} 38. Qe5+ Qxe5 39. Nxe5 Rd2 (39... Rxb5 40. Bc6 $11)) 38. Rxe7 $15 {[%emt 0:00:02]} Kg7 {[%emt 0:00:28]} ({Reject} 38... Rxb5 39. Bc6 Rf5 40. Ne5 $14 (40. Bxa4 Rxf3 41. Rxc4 Rf6 $15) (40. Bxa4 $2 {perishes.} Rxf3 41. Rxc4 Rd2 $19)) 39. Ne5 {[%emt 0:00:59]} Kf6 {[%emt 0:00:41]} 40. Nc6 {[%emt 0:00:51]} Rxb5 {[%emt 0:00:23]} 41. Ba6 $1 {[%emt 0:08:33]} Rb6 {[%emt 0:26:10]} 42. Bxc4 {[%emt 0:00:22]} Rd7 {[%emt 0:01:42]} 43. Rxd7 {[%emt 0:00:25]} Bxd7 {[%emt 0:00:04]} 44. Nd4 {[%emt 0:00:47]} Rb4 {[%emt 0:00:24]} 45. Nf3 {[%emt 0:00:38]} Nb6 {[%emt 0:00:20]} 46. Bd3 {[%emt 0:00:24]} Rb3 {[%emt 0:00:44]} 47. Be4 {[%emt 0:00:20]} Rb4 {[%emt 0:00:04]} 48. Bd3 {[%emt 0:00:02]} Rb3 {[%emt 0:00:16]} 49. Be4 {[%emt 0:00:04]} Rb4 {[%emt 0:00:06]} 50. Bd3 {[%emt 0:00:08]} 1/2-1/2

[Event "USA Championship 2024"]
[Site "Saint Louis"]
[Date "2024.10.16"]
[Round "5.3"]
[White "Mishra, Abhimanyu"]
[Black "Liang, Awonder"]
[Result "0-1"]
[ECO "D27"]
[WhiteElo "2630"]
[BlackElo "2677"]
[Annotator "TA"]
[PlyCount "86"]
[EventDate "2024.10.09"]
[EventType "tourn"]
[EventCountry "USA"]
[SourceTitle "playchess.com"]
[Source "ChessBase"]
[SourceQuality "1"]
[TimeControl "40/5400+30:1800+30"]

{[%evp 19,86,0,0,0,0,-18,-9,-9,-16,-60,-53,-50,-54,-54,-47,-52,-49,-68,-89,-104,-30,-66,-52,-102,-117,-95,-106,-108,-123,-132,-71,-116,-90,-113,-87,-245,-182,-339,-334,-389,-412,-408,-418,-414,-403,-435,-420,-445,-445,-434,-390,-435,-409,-443,-437,-483,-557,-547,-581,-718,-719,-910,-858,-819,-879,-829,-823,-757,-741]} 1. d4 {[%emt 0:00:02]} d5 {[%emt 0:00:06]} 2. c4 {[%emt 0:00:17]} e6 {[%emt 0:00:01]} 3. Nc3 {[%emt 0:00:17]} dxc4 {[%emt 0:06:32]} 4. e3 {[%emt 0:06:18]} Nf6 {[%emt 0:00:00]} 5. Bxc4 {[%emt 0:00:36]} a6 {[%emt 0:05:32]} 6. a4 {[%emt 0:00:39]} c5 {[%emt 0:00:00]} 7. Nf3 {[%emt 0:06:41]} Nc6 {[%emt 0:00:00]} 8. O-O {[%emt 0:01:53]} Be7 {[%emt 0:00:00]} 9. d5 {[%emt 0:12:28]} exd5 {[%emt 0:00:00]} 10. Nxd5 {[%emt 0:00:33]} O-O {[%emt 0:01:11]} 11. Nxe7+ {[%emt 0:08:30]} Qxe7 {[%emt 0:00:02]} 12. b3 {[%emt 0:00:19]} Be6 {[%emt 0:01:21]} 13. Qc2 {[%emt 0:07:19] The position is equal.} Nb4 {[%emt 0:02:59]} 14. Qe2 {[%emt 0:01:26]} Ne4 {[%emt 0:00:29]} 15. Bd2 {[%emt 0:10:03]} Bg4 {[%emt 0:06:50]} 16. Rfd1 {[%emt 0:12:05]} Qf6 {[%emt 0:00:06] ...Ng5 is the strong threat.} 17. h3 {[%emt 0:02:29]} Bh5 {[%emt 0:00:14][%cal Ob7b5,Bg4h5,Bh5g6,Bg6e4,Be4c6][%mdl 32]} 18. g4 {[%emt 0:01:44]} Bg6 {[%emt 0:02:39][%cal Ob7b5] Black has more active pieces.} 19. Be1 {[%emt 0:02:38]} Qe7 {[%emt 0:01:19]} (19... Nc2 $1 $17 {[%cal Rc2a1]} 20. Ne5 Nxe1 (20... Qxe5 21. Qxc2 Ng5 22. Qe2 $17) (20... Nxa1 21. Nd7 $17)) 20. Qb2 {[%emt 0:04:44]} Rae8 {[%emt 0:00:34]} 21. Bc3 {[%emt 0:04:02]} (21. Rac1 $15) 21... Nxc3 $17 {[%emt 0:00:32]} 22. Qxc3 {[%emt 0:00:03]} Be4 {[%emt 0:04:39]} 23. Nd2 {[%emt 0:01:36] [#]} Bc6 {[%emt 0:00:07] aiming for ...b5.} 24. e4 {[%emt 0:01:17]} Rd8 {[%emt 0:02:36]} (24... Bxe4 $2 25. Re1 $18) (24... h5 $142 25. gxh5 b5 (25... Bxe4 26. Nxe4 Qxe4 27. h6 $11)) 25. Re1 {[%emt 0:05:20]} Rd4 {[%emt 0:01:59][%cal Ob7b5]} 26. Bf1 {[%emt 0:01:28]} Rfd8 {[%emt 0:00:54]} (26... Bxe4 27. f3 $16) 27. Nc4 {[%emt 0:07:00] White does not recover from this.} (27. Nf3 $17) 27... g6 {[%emt 0:11:29]} ({Don't play} 27... Rxe4 28. Ne5 $17) (27... Bxe4 28. f3 Qh4 29. fxe4 $11) 28. Ne3 $2 {[%emt 0:04:53]} (28. Na5 {is a better defense.}) 28... Qxe4 $19 {[%emt 0:02:19]} ({Resist} 28... Rxe4 29. f3 Re6 30. Ng2) 29. Bg2 {[%emt 0:00:00] [#]} Qf4 {[%emt 0:00:52]} 30. Bxc6 {[%emt 0:02:18]} Rd2 {[%emt 0:03:30]} ({Less strong is} 30... bxc6 31. Ng2 Qd6 32. Re2 $19) 31. Rf1 {[%emt 0:00:00]} Nxc6 {[%emt 0:00:48]} 32. Ng2 {[%emt 0:05:27]} Qd6 {[%emt 0:05:40] Hoping for ...Rd3.} 33. Qg3 {[%emt 0:01:01]} Qxg3 {[%emt 0:01:01]} 34. fxg3 {[%emt 0:00:00]} R8d3 {[%emt 0:00:02]} 35. Rf2 {[%emt 0:00:59]} Nd4 {[%emt 0:00:34]} 36. Rxd2 {[%emt 0:00:00]} Rxd2 {[%emt 0:00:13][%mdl 4096] Endgame. KRN-KRN. Black is clearly winning.} 37. Nf4 {[%emt 0:00:00]} Nxb3 {[%emt 0:00:11]} 38. Re1 {[%emt 0:00:00]} Kf8 {[%emt 0:00:13]} 39. Re5 {[%emt 0:00:00]} c4 {[%emt 0:00:21]} 40. Nd5 {[%emt 0:00:14]} Nd4 {[%emt 0:02:56]} 41. Re3 {[%emt 0:23:32] Inhibits Nf3+.} Ne2+ {[%emt 0:27:12]} 42. Kf1 {[%emt 0:00:08]} Nxg3+ {[%emt 0:00:04]} 43. Rxg3 {[%emt 0:00:15]} Rxd5 {[%emt 0:00:02] Weighted Error Value: White=0.26 (precise) /Black=0.10 (very precise) .  Mistake:       	White=3     	Black=2      Inaccurate:     	White=3     	---        OK:         	White=13    	Black=19     Best:        	---       	Black=1} 0-1

[Event "USA Championship 2024"]
[Site "Saint Louis"]
[Date "2024.10.16"]
[Round "5.4"]
[White "Niemann, Hans Moke"]
[Black "So, Wesley"]
[Result "1/2-1/2"]
[ECO "C42"]
[WhiteElo "2733"]
[BlackElo "2751"]
[Annotator "TA"]
[PlyCount "84"]
[EventDate "2024.10.09"]
[EventType "tourn"]
[EventCountry "USA"]
[SourceTitle "playchess.com"]
[Source "ChessBase"]
[SourceQuality "1"]
[TimeControl "40/5400+30:1800+30"]

{[%evp 12,84,58,62,60,42,45,42,45,37,50,52,63,50,43,16,14,0,0,0,19,12,16,11,29,19,20,0,8,0,10,0,9,0,31,11,8,0,0,0,0,0,0,0,0,0,0,-6,0,0,0,0,6,6,9,6,6,6,6,0,7,0,0,0,0,0,0,0,0,0,0,0,0,0,3]} 1. e4 {[%emt 0:00:05]} e5 {[%emt 0:00:29]} 2. Nf3 {[%emt 0:00:13]} Nf6 {[%emt 0:00:07]} 3. Nxe5 {[%emt 0:00:54]} Nxe4 {[%emt 0:00:07]} 4. Qe2 {[%emt 0:00:53]} Qe7 {[%emt 0:00:07]} 5. Qxe4 {[%emt 0:00:47]} d6 {[%emt 0:00:07]} 6. d4 {[%emt 0:03:21]} dxe5 {[%emt 0:00:05]} 7. dxe5 {[%emt 0:00:49]} Nc6 {[%emt 0:00:12]} 8. Nc3 {[%emt 0:00:14]} Qxe5 {[%emt 0:00:25]} 9. Qxe5+ {[%emt 0:00:14]} Nxe5 {[%emt 0:00:05] White is slightly better.} 10. Bf4 {[%emt 0:00:30]} f6 {[%emt 0:00:10]} 11. O-O-O {[%emt 0:06:35] Hoping for Nb5.} Bd7 {[%emt 0:00:08]} 12. Bxe5 {[%emt 0:14:34]} fxe5 {[%emt 0:00:06]} 13. Bb5 {[%emt 0:00:11]} c6 {[%emt 0:00:06]} 14. Rhe1 {[%emt 0:04:40]} O-O-O $1 {[%emt 0:00:41]} (14... cxb5 $2 {perishes.} 15. Rxe5+ Be7 16. Nd5 $18 (16. Nxb5 $2 Bxb5 17. Rxb5 Rb8 $19)) 15. Bc4 {[%emt 0:01:42]} b5 {[%emt 0:18:21]} 16. Bd3 {[%emt 0:15:24]} Re8 {[%emt 0:03:01]} 17. Ne4 {[%emt 0:01:41]} Be7 {[%emt 0:00:07]} 18. Nd2 {[%emt 0:03:36]} Bf6 {[%emt 0:05:26]} 19. h3 {[%emt 0:02:04]} Kc7 {[%emt 0:01:21]} 20. Kb1 {[%emt 0:03:46]} h5 {[%emt 0:04:33]} 21. Re2 {[%emt 0:03:31]} g5 {[%emt 0:02:49]} 22. Ne4 {[%emt 0:08:51]} Rhf8 {[%emt 0:03:55]} 23. c4 {[%emt 0:10:48]} (23. Red2 {looks sharper.} g4 24. Bxb5 Re7 25. Be2) 23... bxc4 {[%emt 0:03:42] The position is equal.} 24. Bxc4 {[%emt 0:00:45]} Be7 {[%emt 0:03:43]} 25. Bd3 {[%emt 0:04:34]} Rd8 {[%emt 0:09:41]} 26. Kc2 {[%emt 0:03:02]} g4 {[%emt 0:02:14]} 27. hxg4 {[%emt 0:00:16]} hxg4 {[%emt 0:00:04]} (27... Bxg4 $5 28. f3 $8 Bc8 $15) 28. b3 {[%emt 0:05:30]} Bc8 {[%emt 0:02:05]} 29. Rh1 {[%emt 0:03:45]} Bf5 {[%emt 0:04:40]} 30. f3 {[%emt 0:00:19]} gxf3 {[%emt 0:04:38]} 31. gxf3 {[%emt 0:00:01]} Bxe4 {[%emt 0:00:31]} 32. Bxe4 {[%emt 0:00:08]} Rh8 {[%emt 0:00:04]} 33. Rxh8 {[%emt 0:01:23]} Rxh8 $11 {[%emt 0:00:04][%mdl 4096] Endgame. KRB-KRB} 34. Rg2 {[%emt 0:00:08]} Bb4 {[%emt 0:00:24]} 35. Kb2 {[%emt 0:01:56]} Rd8 {[%emt 0:00:22]} 36. Kc2 {[%emt 0:00:26]} Kb6 {[%emt 0:00:20]} 37. Bd3 {[%emt 0:00:10]} Rf8 {[%emt 0:00:05]} 38. Rg4 {[%emt 0:00:13]} a5 {[%emt 0:00:13]} 39. Be4 {[%emt 0:00:10]} Rd8 {[%emt 0:00:05]} 40. Bd3 {[%emt 0:00:07]} Rf8 {[%emt 0:00:03]} 41. Be4 {[%emt 0:30:04]} Rd8 {[%emt 0:30:03]} 42. Bd3 {[%emt 0:00:06]} Rf8 {[%emt 0:00:11] Weighted Error Value: White=0.05 (flawless) /Black=0.03 (flawless) .  Inaccurate:     	White=1     	Black=1      OK:         	White=10    	Black=18     Strong:       	---       	Black=1} 1/2-1/2

[Event "USA Championship 2024"]
[Site "Saint Louis"]
[Date "2024.10.16"]
[Round "5.5"]
[White "Yoo, Christopher Woojin"]
[Black "Caruana, Fabiano"]
[Result "0-1"]
[ECO "A34"]
[WhiteElo "2590"]
[BlackElo "2796"]
[Annotator "TA"]
[PlyCount "96"]
[EventDate "2024.10.09"]
[EventType "tourn"]
[EventCountry "USA"]
[SourceTitle "playchess.com"]
[Source "ChessBase"]
[SourceQuality "1"]
[TimeControl "40/5400+30:1800+30"]

{[%evp 10,96,29,23,24,0,10,-11,-3,-37,0,9,16,16,0,13,45,30,75,61,87,91,94,100,104,102,89,69,113,119,110,76,97,65,83,28,22,12,9,0,0,0,0,16,36,0,5,-168,-168,-167,-161,-230,-234,-238,-238,-233,-166,-179,-82,-132,-52,-654,-654,-661,-635,-562,-675,-686,-576,-29949,-29958,-29958,-29963,-29962,-11303,-29963,-29958,-29958,-29959,-29967,-29970,-29982,-29983,-29994,-29995,-29995,-29996,-29996,-29997]} 1. Nf3 {[%emt 0:00:10]} c5 {[%emt 0:00:05]} 2. c4 {[%emt 0:00:04]} b6 {[%emt 0:00:05]} 3. Nc3 {[%emt 0:03:51]} Bb7 {[%emt 0:00:17]} 4. e4 {[%emt 0:01:54][%cal Be2e4,Be4e5][%mdl 32]} e6 {[%emt 0:01:08]} 5. d4 {[%emt 0:03:45]} cxd4 {[%emt 0:00:15]} 6. Nxd4 {[%emt 0:00:03] White wants to play Ndb5.} Nf6 {[%emt 0:00:08]} 7. Bd3 {[%emt 0:00:48]} Nc6 {[%emt 0:00:43]} 8. Nxc6 {[%emt 0:01:07]} dxc6 {[%emt 0:00:05] The position is equal.} 9. e5 {[%emt 0:02:46]} Nd7 {[%emt 0:00:06]} (9... Ng4 $15 {should be considered.} 10. Bf4 Qd4 11. Qxg4 Qxd3) 10. Bf4 $11 {[%emt 0:02:12][%cal Bc1f4,Bf4g3,Bg3h4,Bh4d8][%mdl 32]} Qc7 {[%emt 0:02:12]} 11. Qe2 {[%emt 0:01:30]} O-O-O {[%emt 0:01:37]} 12. Bg3 {[%emt 0:02:03]} h5 {[%emt 0:10:33]} 13. Bh4 {[%emt 0:02:04]} Nxe5 {[%emt 0:37:53]} 14. Bxd8 {[%emt 0:00:13]} Nxd3+ {[%emt 0:00:03]} 15. Qxd3 {[%emt 0:00:13]} Qxd8 {[%emt 0:00:03]} 16. O-O-O {[%emt 0:09:39]} Qc7 {[%emt 0:00:29]} 17. Kb1 {[%emt 0:03:54]} Be7 {[%emt 0:02:03]} 18. Rhe1 {[%emt 0:00:54]} g6 {[%emt 0:06:35]} 19. g3 {[%emt 0:02:18]} Kb8 {[%emt 0:02:24]} 20. Qe3 {[%emt 0:01:09]} Ba6 {[%emt 0:04:06]} 21. b3 {[%emt 0:00:43]} Bc8 {[%emt 0:03:21]} 22. f4 {[%emt 0:08:13]} (22. Ne4 $16) 22... h4 {[%emt 0:00:52]} 23. Qe5 {[%emt 0:04:21]} f6 {[%emt 0:06:36]} 24. Qe3 {[%emt 0:01:02]} hxg3 {[%emt 0:05:58]} 25. hxg3 {[%emt 0:00:14]} e5 {[%emt 0:00:19]} 26. fxe5 {[%emt 0:00:54]} fxe5 {[%emt 0:00:18]} 27. Rh1 {[%emt 0:04:18]} Bc5 {[%emt 0:03:59]} 28. Qg5 {[%emt 0:00:16]} (28. Qd3 $11 Rf8 29. Ne4 (29. Qxg6 $2 {loses.} Bf5+ $19)) 28... Rxh1 $19 {[%emt 0:02:04]} 29. Rxh1 {[%emt 0:00:03]} Qd6 {[%emt 0:01:36]} 30. g4 {[%emt 0:04:26] [#]} (30. Rh2 {was necessary.}) 30... Qd3+ $1 {[%emt 0:00:30][%mdl 1024] Black has strong compensation.} 31. Kb2 {[%emt 0:00:03]} Bd4 {[%emt 0:00:17]} 32. Rc1 {[%emt 0:00:04]} a5 {[%emt 0:04:48] ...b5 would now be deadly.} 33. a4 {[%emt 0:02:07] [#]} Qe4 {[%emt 0:02:31]} (33... Kc7 $1 $19 34. Rc2 Bd7) 34. Qf6 {[%emt 0:01:42]} ({White should try} 34. Qd8 Qxg4 35. Qd6+ Kb7 36. Qe7+ Ka6 37. Qf8) 34... Kc7 {[%emt 0:01:30] Chess con chili. Black is more active.} ({But not} 34... Qxg4 $6 35. Qxc6 Qg5 36. Rc2 $11) (34... Bxg4 $17 {Strongly threatening ...Qd3.} 35. c5 bxc5) 35. g5 $2 {[%emt 0:04:19][%mdl 8192]} (35. b4 $15) 35... Qd3 {[%emt 0:00:07] Hoping for ...Qd2+.} 36. Qe7+ {[%emt 0:01:09]} Kb8 {[%emt 0:00:39] ( -> ...Qd2+)} 37. Qd6+ {[%emt 0:02:11]} Kb7 {[%emt 0:00:04]} 38. Qe7+ {[%emt 0:00:03]} Ka6 {[%emt 0:00:46]} 39. b4 {[%emt 0:02:13] aiming for b5+.} Qxc4 {[%emt 0:00:59]} 40. Qe8 {[%emt 0:00:57]} Qxb4+ {[%emt 0:00:39]} 41. Ka2 {[%emt 0:30:03]} Qc4+ {[%emt 0:30:37]} 42. Kb2 {[%emt 0:00:03]} Kb7 {[%emt 0:00:00] Black mates.} 43. Qe7+ {[%emt 0:00:00]} Kb8 {[%emt 0:00:00]} 44. Qd6+ {[%emt 0:00:00]} Ka8 {[%emt 0:00:00]} 45. Qxg6 {[%emt 0:00:00]} Be6 {[%emt 0:00:00][%csl Ge6][%cal Rc4a2]} 46. Rc2 {[%emt 0:00:00]} Qa2+ {[%emt 0:00:00]} 47. Kc1 {[%emt 0:00:00]} Be3+ {[%emt 0:00:00] A strong pair of Bishops.} 48. Kd1 {[%emt 0:00:00]} Bg4+ {[%emt 0:00:00] Weighted Error Value: White=0.39/Black=0.16 (very precise) .  Loses game:     	White=2     	---        Mistake:       	White=3     	Black=3      Inaccurate:     	White=4     	Black=4      OK:         	White=9     	Black=10     Best:        	White=4     	Black=1      Strong:       	---       	Black=1} 0-1